[Event "Titled Tuesday Blitz February 28 Early 2023"]
[White "Matlakov, Maxim"]
[Black "Cherniaiev, Tykhon"]
[WhiteFideId "4168003"]
[BlackFideId "14182360"]
[WhiteElo "2666"]
[BlackElo "2450"]
[Result "0-1"]
[Round "03"]
[TimeControl "180+2"]
[Date "2023.02.28"]
[WhiteClock "0:00:04"]
[BlackClock "0:00:06"]

1. d4 {[%clk 0:03:00]}  Nf6 {[%clk 0:02:59]} 2. Nf3 {[%clk 0:03:01]}  e6 {[%clk 0:02:59]} 3. g3 {[%clk 0:03:00]}  Be7 {[%clk 0:02:58]} 4. Bg2 {[%clk 0:03:00]}  O-O {[%clk 0:02:58]} 5. O-O {[%clk 0:03:00]}  d5 {[%clk 0:02:59]} 6. c4 {[%clk 0:02:53]}  dxc4 {[%clk 0:02:58]} 7. a4 {[%clk 0:02:52]}  Bd7 {[%clk 0:02:53]} 8. Nbd2 {[%clk 0:02:45]}  Bc6 {[%clk 0:02:52]} 9. Nxc4 {[%clk 0:02:45]}  Nbd7 {[%clk 0:02:52]} 10. b3 {[%clk 0:02:34]}  a5 {[%clk 0:02:43]} 11. Bb2 {[%clk 0:02:33]}  Nb6 {[%clk 0:02:38]} 12. Nce5 {[%clk 0:02:31]}  Be4 {[%clk 0:02:38]} 13. Rc1 {[%clk 0:02:29]}  Nbd5 {[%clk 0:02:38]} 14. Nd3 {[%clk 0:02:27]}  c6 {[%clk 0:02:32]} 15. Nc5 {[%clk 0:02:25]}  Bxc5 {[%clk 0:02:32]} 16. Rxc5 {[%clk 0:02:24]}  Qb6 {[%clk 0:02:28]} 17. Ne5 {[%clk 0:02:18]}  Rfd8 {[%clk 0:02:19]} 18. Bh3 {[%clk 0:02:06]}  Nd7 {[%clk 0:02:05]} 19. Nxd7 {[%clk 0:02:03]}  Rxd7 {[%clk 0:02:06]} 20. Re1 {[%clk 0:01:45]}  Rad8 {[%clk 0:01:56]} 21. e3 {[%clk 0:01:34]}  Nf4 {[%clk 0:01:36]} 22. Qg4 {[%clk 0:01:15]}  Nxh3+ {[%clk 0:01:27]} 23. Qxh3 {[%clk 0:01:16]}  Rd5 {[%clk 0:01:21]} 24. Rc3 {[%clk 0:01:03]}  c5 {[%clk 0:01:10]} 25. dxc5 {[%clk 0:00:51]}  Rxc5 {[%clk 0:00:56]} 26. Qg4 {[%clk 0:00:50]}  Bg6 {[%clk 0:00:36]} 27. Rxc5 {[%clk 0:00:35]}  Qxc5 {[%clk 0:00:37]} 28. Rd1 {[%clk 0:00:35]}  Rxd1+ {[%clk 0:00:30]} 29. Qxd1 {[%clk 0:00:36]}  Qd5 {[%clk 0:00:30]} 30. Qxd5 {[%clk 0:00:24]}  exd5 {[%clk 0:00:30]} 31. Bc3 {[%clk 0:00:22]}  Bc2 {[%clk 0:00:30]} 32. Bxa5 {[%clk 0:00:21]}  Bxb3 {[%clk 0:00:30]} 33. Bb6 {[%clk 0:00:18]}  Bxa4 {[%clk 0:00:31]} 34. Kf1 {[%clk 0:00:18]}  f6 {[%clk 0:00:31]} 35. Ke2 {[%clk 0:00:18]}  Kf7 {[%clk 0:00:32]} 36. Kd3 {[%clk 0:00:18]}  Ke6 {[%clk 0:00:33]} 37. Kd4 {[%clk 0:00:18]}  Bc2 {[%clk 0:00:32]} 38. Kc5 {[%clk 0:00:16]}  Be4 {[%clk 0:00:31]} 39. Kd4 {[%clk 0:00:16]}  Kf5 {[%clk 0:00:30]} 40. h3 {[%clk 0:00:16]}  Bg2 {[%clk 0:00:28]} 41. h4 {[%clk 0:00:16]}  Kg4 {[%clk 0:00:27]} 42. Kd3 {[%clk 0:00:10]}  Kf3 {[%clk 0:00:20]} 43. e4 {[%clk 0:00:09]}  dxe4+ {[%clk 0:00:20]} 44. Kd2 {[%clk 0:00:09]}  h5 {[%clk 0:00:19]} 45. Be3 {[%clk 0:00:08]}  g5 {[%clk 0:00:18]} 46. Bd4 {[%clk 0:00:06]}  gxh4 {[%clk 0:00:16]} 47. gxh4 {[%clk 0:00:07]}  f5 {[%clk 0:00:16]} 48. Ke1 {[%clk 0:00:07]}  f4 {[%clk 0:00:16]} 49. Bb6 {[%clk 0:00:08]}  Bh3 {[%clk 0:00:15]} 50. Kd2 {[%clk 0:00:07]}  Kg2 {[%clk 0:00:14]} 51. Ke1 {[%clk 0:00:07]}  Bf5 {[%clk 0:00:10]} 52. Ba7 {[%clk 0:00:05]}  b5 {[%clk 0:00:10]} 53. Bc5 {[%clk 0:00:05]}  Kf3 {[%clk 0:00:10]} 54. Kd2 {[%clk 0:00:05]}  Be6 {[%clk 0:00:06]} 55. Ke1 {[%clk 0:00:05]}  e3 {[%clk 0:00:06]} 56. fxe3 {[%clk 0:00:05]}  fxe3 {[%clk 0:00:07]} 57. Kf1 {[%clk 0:00:06]}  Ke4 {[%clk 0:00:07]} 58. Ke2 {[%clk 0:00:06]}  Bg4+ {[%clk 0:00:07]} 59. Ke1 {[%clk 0:00:06]}  Kd3 {[%clk 0:00:08]} 60. Kf1 {[%clk 0:00:05]}  Kd2 {[%clk 0:00:07]} 61. Bb4+ {[%clk 0:00:05]}  Kd1 {[%clk 0:00:07]} 62. Kg2 {[%clk 0:00:06]}  e2 {[%clk 0:00:04]} 63. Kf2 {[%clk 0:00:07]}  Kc2 {[%clk 0:00:05]} 64. Ke1 {[%clk 0:00:06]}  Kb3 {[%clk 0:00:06]} 65. Bd6 {[%clk 0:00:06]}  Kc3 {[%clk 0:00:03]} 66. Be5+ {[%clk 0:00:06]}  Kc4 {[%clk 0:00:03]} 67. Kd2 {[%clk 0:00:06]}  b4 {[%clk 0:00:04]} 68. Bf6 {[%clk 0:00:06]}  Kb3 {[%clk 0:00:04]} 69. Bg7 {[%clk 0:00:06]}  Ka3 {[%clk 0:00:04]} 70. Bf8 {[%clk 0:00:06]}  Ka4 {[%clk 0:00:05]} 71. Be7 {[%clk 0:00:04]}  b3 {[%clk 0:00:05]} 72. Bf6 {[%clk 0:00:04]}  Ka3 {[%clk 0:00:05]} 73. Be7+ {[%clk 0:00:04]}  Ka2 {[%clk 0:00:05]} 74. Bf6 {[%clk 0:00:04]}  b2 {[%clk 0:00:06]} 0-1


[Site "https://www.chess.com"]

[Event "Titled Tuesday Blitz February 28 Early 2023"]
[White "Dominguez Perez, Leinier"]
[Black "EREBUNI91"]
[WhiteFideId "3503240"]
[WhiteElo "2647"]
[BlackElo "2720"]
[Result "0-1"]
[Round "03"]
[TimeControl "180+2"]
[Date "2023.02.28"]
[WhiteClock "0:00:01"]
[BlackClock "0:00:30"]

1. d4 {[%clk 0:03:00]}  Nf6 {[%clk 0:02:59]} 2. Nf3 {[%clk 0:03:01]}  d5 {[%clk 0:02:58]} 3. e3 {[%clk 0:03:01]}  c5 {[%clk 0:02:57]} 4. Nbd2 {[%clk 0:03:01]}  Nc6 {[%clk 0:02:51]} 5. Bb5 {[%clk 0:02:54]}  e6 {[%clk 0:02:47]} 6. O-O {[%clk 0:02:51]}  Be7 {[%clk 0:02:43]} 7. dxc5 {[%clk 0:02:48]}  Bxc5 {[%clk 0:02:44]} 8. a3 {[%clk 0:02:44]}  a6 {[%clk 0:02:41]} 9. Bd3 {[%clk 0:02:30]}  e5 {[%clk 0:02:34]} 10. e4 {[%clk 0:02:27]}  O-O {[%clk 0:02:30]} 11. b4 {[%clk 0:02:23]}  Ba7 {[%clk 0:02:26]} 12. Bb2 {[%clk 0:02:22]}  Re8 {[%clk 0:02:16]} 13. Qe2 {[%clk 0:02:10]}  Bg4 {[%clk 0:02:08]} 14. h3 {[%clk 0:01:51]}  Bh5 {[%clk 0:02:07]} 15. c3 {[%clk 0:01:09]}  Rc8 {[%clk 0:01:55]} 16. Rad1 {[%clk 0:01:08]}  Qe7 {[%clk 0:01:41]} 17. Rfe1 {[%clk 0:01:03]}  Rcd8 {[%clk 0:01:35]} 18. g3 {[%clk 0:00:53]}  Bg6 {[%clk 0:01:20]} 19. Nh4 {[%clk 0:00:46]}  Bxe4 {[%clk 0:01:11]} 20. Nxe4 {[%clk 0:00:45]}  Nxe4 {[%clk 0:01:11]} 21. Bxe4 {[%clk 0:00:45]}  dxe4 {[%clk 0:01:12]} 22. Qxe4 {[%clk 0:00:46]}  Qg5 {[%clk 0:01:06]} 23. Kg2 {[%clk 0:00:41]}  Rd2 {[%clk 0:01:06]} 24. Rxd2 {[%clk 0:00:40]}  Qxd2 {[%clk 0:01:07]} 25. Re2 {[%clk 0:00:40]}  Qd1 {[%clk 0:01:03]} 26. Nf3 {[%clk 0:00:36]}  Rd8 {[%clk 0:01:00]} 27. Nxe5 {[%clk 0:00:30]}  Re8 {[%clk 0:00:57]} 28. c4 {[%clk 0:00:15]}  Nxe5 {[%clk 0:00:51]} 29. Bxe5 {[%clk 0:00:14]}  f6 {[%clk 0:00:50]} 30. Qg4 {[%clk 0:00:02]}  fxe5 {[%clk 0:00:42]} 31. Rxe5 {[%clk 0:00:02]}  Qxg4 {[%clk 0:00:39]} 32. Rxe8+ {[%clk 0:00:03]}  Kf7 {[%clk 0:00:40]} 33. hxg4 {[%clk 0:00:03]}  Kxe8 {[%clk 0:00:39]} 34. f4 {[%clk 0:00:04]}  Bd4 {[%clk 0:00:36]} 35. a4 {[%clk 0:00:04]}  Kd7 {[%clk 0:00:33]} 36. Kf3 {[%clk 0:00:04]}  Kd6 {[%clk 0:00:31]} 37. g5 {[%clk 0:00:03]}  Bc3 {[%clk 0:00:30]} 38. b5 {[%clk 0:00:01]}  a5 {[%clk 0:00:30]} 0-1


[Site "https://www.chess.com"]

[Event "Titled Tuesday Blitz February 28 Early 2023"]
[White "Aradhya, Garg"]
[Black "Maghsoodloo, Parham"]
[WhiteFideId "25006746"]
[BlackFideId "12539929"]
[WhiteElo "2278"]
[BlackElo "2659"]
[Result "0-1"]
[Round "03"]
[TimeControl "180+2"]
[Date "2023.02.28"]
[WhiteClock "0:00:02"]
[BlackClock "0:00:20"]

1. d4 {[%clk 0:03:00]}  Nf6 {[%clk 0:02:59]} 2. Nf3 {[%clk 0:03:01]}  d5 {[%clk 0:02:58]} 3. c4 {[%clk 0:03:00]}  e6 {[%clk 0:02:57]} 4. Nc3 {[%clk 0:03:00]}  Bb4 {[%clk 0:02:56]} 5. cxd5 {[%clk 0:02:59]}  exd5 {[%clk 0:02:56]} 6. Bg5 {[%clk 0:03:00]}  h6 {[%clk 0:02:56]} 7. Bh4 {[%clk 0:03:00]}  O-O {[%clk 0:02:55]} 8. e3 {[%clk 0:03:01]}  Bf5 {[%clk 0:02:53]} 9. Be2 {[%clk 0:03:01]}  Nbd7 {[%clk 0:02:52]} 10. O-O {[%clk 0:03:00]}  c6 {[%clk 0:02:49]} 11. Qb3 {[%clk 0:02:57]}  a5 {[%clk 0:02:46]} 12. Rfc1 {[%clk 0:02:55]}  Qb8 {[%clk 0:02:24]} 13. Bg3 {[%clk 0:02:26]}  Qa7 {[%clk 0:02:23]} 14. a3 {[%clk 0:02:25]}  Be7 {[%clk 0:02:22]} 15. Qd1 {[%clk 0:02:09]}  a4 {[%clk 0:02:21]} 16. Bd3 {[%clk 0:02:03]}  Bxd3 {[%clk 0:02:20]} 17. Qxd3 {[%clk 0:02:04]}  b5 {[%clk 0:02:19]} 18. Ne2 {[%clk 0:01:59]}  Rac8 {[%clk 0:02:17]} 19. Ne5 {[%clk 0:01:56]}  Qb7 {[%clk 0:02:13]} 20. Rc2 {[%clk 0:01:46]}  Nb6 {[%clk 0:02:12]} 21. b3 {[%clk 0:01:40]}  axb3 {[%clk 0:01:57]} 22. Qxb3 {[%clk 0:01:41]}  Qa8 {[%clk 0:01:57]} 23. f3 {[%clk 0:01:25]}  Nfd7 {[%clk 0:01:42]} 24. Nxd7 {[%clk 0:01:06]}  Nxd7 {[%clk 0:01:42]} 25. a4 {[%clk 0:01:04]}  Nb6 {[%clk 0:01:42]} 26. Nc3 {[%clk 0:01:04]}  Qa5 {[%clk 0:01:38]} 27. Rca2 {[%clk 0:00:57]}  b4 {[%clk 0:01:37]} 28. Ne2 {[%clk 0:00:56]}  c5 {[%clk 0:01:35]} 29. dxc5 {[%clk 0:00:51]}  Bxc5 {[%clk 0:01:36]} 30. Bf2 {[%clk 0:00:38]}  Rfe8 {[%clk 0:01:33]} 31. Nf4 {[%clk 0:00:39]}  Bd6 {[%clk 0:01:27]} 32. Be1 {[%clk 0:00:30]}  d4 {[%clk 0:01:26]} 33. Nd3 {[%clk 0:00:28]}  Rxe3 {[%clk 0:01:15]} 34. Bd2 {[%clk 0:00:28]}  Rc3 {[%clk 0:00:57]} 35. Bxc3 {[%clk 0:00:28]}  dxc3 {[%clk 0:00:51]} 36. Rd1 {[%clk 0:00:26]}  Re6 {[%clk 0:00:40]} 37. g3 {[%clk 0:00:18]}  Nd5 {[%clk 0:00:40]} 38. Re1 {[%clk 0:00:16]}  Qa7+ {[%clk 0:00:33]} 39. Kh1 {[%clk 0:00:12]}  Qd4 {[%clk 0:00:33]} 40. Rxe6 {[%clk 0:00:11]}  fxe6 {[%clk 0:00:33]} 41. Nf2 {[%clk 0:00:07]}  Bc5 {[%clk 0:00:30]} 42. Re2 {[%clk 0:00:06]}  Kf7 {[%clk 0:00:24]} 43. a5 {[%clk 0:00:06]}  Ne3 {[%clk 0:00:23]} 44. a6 {[%clk 0:00:06]}  Qd5 {[%clk 0:00:17]} 45. Qxd5 {[%clk 0:00:06]}  exd5 {[%clk 0:00:18]} 46. Nd3 {[%clk 0:00:06]}  b3 {[%clk 0:00:19]} 47. Nxc5 {[%clk 0:00:02]}  b2 {[%clk 0:00:19]} 48. Re1 {[%clk 0:00:03]}  c2 {[%clk 0:00:19]} 49. a7 {[%clk 0:00:03]}  b1=Q {[%clk 0:00:20]} 50. Rg1 {[%clk 0:00:02]}  c1=Q {[%clk 0:00:20]} 51. Rxc1 {[%clk 0:00:02]}  Qxc1# {[%clk 0:00:20]} 0-1


[Site "https://www.chess.com"]

[Event "Titled Tuesday Blitz February 28 Early 2023"]
[White "Kovalenko, Igor"]
[Black "Malek, Jan"]
[WhiteFideId "14117908"]
[BlackFideId "21864080"]
[WhiteElo "2574"]
[BlackElo "2255"]
[Result "1-0"]
[Round "03"]
[TimeControl "180+2"]
[Date "2023.02.28"]
[WhiteClock "0:01:22"]
[BlackClock "0:00:05"]

1. c4 {[%clk 0:02:46]}  c5 {[%clk 0:02:54]} 2. Nf3 {[%clk 0:02:45]}  Nc6 {[%clk 0:02:53]} 3. Nc3 {[%clk 0:02:45]}  g6 {[%clk 0:02:53]} 4. e3 {[%clk 0:02:45]}  Nf6 {[%clk 0:02:41]} 5. d4 {[%clk 0:02:45]}  cxd4 {[%clk 0:02:42]} 6. exd4 {[%clk 0:02:46]}  d5 {[%clk 0:02:43]} 7. cxd5 {[%clk 0:02:46]}  Nxd5 {[%clk 0:02:43]} 8. Qb3 {[%clk 0:02:46]}  Nxc3 {[%clk 0:02:36]} 9. Bc4 {[%clk 0:02:47]}  e6 {[%clk 0:02:16]} 10. bxc3 {[%clk 0:02:46]}  Bg7 {[%clk 0:02:14]} 11. Ba3 {[%clk 0:02:46]}  Bf8 {[%clk 0:02:06]} 12. Bb5 {[%clk 0:02:46]}  Bd7 {[%clk 0:01:59]} 13. Bxf8 {[%clk 0:02:32]}  Kxf8 {[%clk 0:01:59]} 14. O-O {[%clk 0:02:31]}  Kg7 {[%clk 0:01:59]} 15. c4 {[%clk 0:02:25]}  Ne7 {[%clk 0:01:32]} 16. Bxd7 {[%clk 0:02:17]}  Qxd7 {[%clk 0:01:33]} 17. Rad1 {[%clk 0:02:15]}  Rhd8 {[%clk 0:01:31]} 18. Rfe1 {[%clk 0:02:11]}  Kg8 {[%clk 0:01:27]} 19. Ne5 {[%clk 0:02:08]}  Qc7 {[%clk 0:01:26]} 20. Ng4 {[%clk 0:01:59]}  Nf5 {[%clk 0:01:22]} 21. d5 {[%clk 0:01:55]}  Qf4 {[%clk 0:01:06]} 22. Nf6+ {[%clk 0:01:51]}  Kg7 {[%clk 0:01:06]} 23. Qb2 {[%clk 0:01:51]}  e5 {[%clk 0:00:40]} 24. Rxe5 {[%clk 0:01:46]}  Nd4 {[%clk 0:00:23]} 25. Nh5+ {[%clk 0:01:42]}  gxh5 {[%clk 0:00:21]} 26. Re3 {[%clk 0:01:43]}  Qf6 {[%clk 0:00:12]} 27. Rxd4 {[%clk 0:01:43]}  Rac8 {[%clk 0:00:10]} 28. Qd2 {[%clk 0:01:35]}  Kh8 {[%clk 0:00:08]} 29. Rf3 {[%clk 0:01:32]}  Qg7 {[%clk 0:00:08]} 30. g3 {[%clk 0:01:30]}  Rd7 {[%clk 0:00:08]} 31. Rf5 {[%clk 0:01:28]}  Qg6 {[%clk 0:00:08]} 32. Rdf4 {[%clk 0:01:28]}  Rxc4 {[%clk 0:00:06]} 33. Qb2+ {[%clk 0:01:22]}  Kg8 {[%clk 0:00:05]} 34. Rxc4 {[%clk 0:01:22]}  Qxf5 {[%clk 0:00:05]} 1-0


[Site "https://www.chess.com"]

[Event "Titled Tuesday Blitz February 28 Early 2023"]
[White "Barbosa, Evandro Amorim"]
[Black "Grigoriants, Sergey"]
[WhiteFideId "2115824"]
[BlackFideId "4130804"]
[WhiteElo "2439"]
[BlackElo "2502"]
[Result "1/2-1/2"]
[Round "03"]
[TimeControl "180+2"]
[Date "2023.02.28"]
[WhiteClock "0:00:31"]
[BlackClock "0:00:16"]

1. e4 {[%clk 0:03:00]}  e5 {[%clk 0:02:53]} 2. Nf3 {[%clk 0:03:00]}  Nc6 {[%clk 0:02:53]} 3. Bb5 {[%clk 0:03:00]}  a6 {[%clk 0:02:53]} 4. Ba4 {[%clk 0:03:00]}  Nf6 {[%clk 0:02:53]} 5. d3 {[%clk 0:03:00]}  b5 {[%clk 0:02:50]} 6. Bb3 {[%clk 0:03:00]}  Bc5 {[%clk 0:02:50]} 7. Nc3 {[%clk 0:02:59]}  h6 {[%clk 0:02:49]} 8. Nd5 {[%clk 0:02:58]}  d6 {[%clk 0:02:48]} 9. c3 {[%clk 0:02:58]}  O-O {[%clk 0:02:45]} 10. Nxf6+ {[%clk 0:02:57]}  Qxf6 {[%clk 0:02:45]} 11. Bd5 {[%clk 0:02:57]}  Bd7 {[%clk 0:02:43]} 12. Rg1 {[%clk 0:02:57]}  Qg6 {[%clk 0:01:38]} 13. g4 {[%clk 0:02:55]}  Ne7 {[%clk 0:01:34]} 14. Bxa8 {[%clk 0:02:43]}  Rxa8 {[%clk 0:01:35]} 15. Nh4 {[%clk 0:02:36]}  Qe6 {[%clk 0:01:25]} 16. Nf5 {[%clk 0:02:27]}  d5 {[%clk 0:01:23]} 17. g5 {[%clk 0:02:17]}  Nxf5 {[%clk 0:01:21]} 18. exf5 {[%clk 0:02:12]}  Qxf5 {[%clk 0:01:22]} 19. Qe2 {[%clk 0:02:12]}  h5 {[%clk 0:01:14]} 20. Bd2 {[%clk 0:02:06]}  g6 {[%clk 0:01:10]} 21. O-O-O {[%clk 0:01:59]}  Re8 {[%clk 0:01:04]} 22. Rgf1 {[%clk 0:01:55]}  d4 {[%clk 0:01:01]} 23. f3 {[%clk 0:01:51]}  Bc6 {[%clk 0:00:52]} 24. Kb1 {[%clk 0:01:46]}  Rd8 {[%clk 0:00:49]} 25. cxd4 {[%clk 0:01:42]}  Bxd4 {[%clk 0:00:47]} 26. Be3 {[%clk 0:01:37]}  b4 {[%clk 0:00:41]} 27. f4 {[%clk 0:01:31]}  Bb5 {[%clk 0:00:37]} 28. Ka1 {[%clk 0:01:23]}  exf4 {[%clk 0:00:32]} 29. Rxf4 {[%clk 0:01:10]}  Qe5 {[%clk 0:00:28]} 30. Re4 {[%clk 0:01:07]}  Qxe4 {[%clk 0:00:23]} 31. dxe4 {[%clk 0:01:07]}  Bxe2 {[%clk 0:00:24]} 32. Rxd4 {[%clk 0:01:07]}  Rxd4 {[%clk 0:00:19]} 33. Bxd4 {[%clk 0:01:08]}  Bf3 {[%clk 0:00:15]} 34. e5 {[%clk 0:01:03]}  b3 {[%clk 0:00:09]} 35. axb3 {[%clk 0:01:02]}  Kf8 {[%clk 0:00:09]} 36. Kb1 {[%clk 0:00:53]}  Ke7 {[%clk 0:00:09]} 37. h4 {[%clk 0:00:50]}  Ke6 {[%clk 0:00:10]} 38. Kc2 {[%clk 0:00:50]}  Kf5 {[%clk 0:00:09]} 39. Kc3 {[%clk 0:00:51]}  Bd5 {[%clk 0:00:06]} 40. b4 {[%clk 0:00:51]}  Kf4 {[%clk 0:00:06]} 41. Bf2 {[%clk 0:00:43]}  Kxe5 {[%clk 0:00:04]} 42. Be1 {[%clk 0:00:42]}  Ke4 {[%clk 0:00:03]} 43. Bf2 {[%clk 0:00:40]}  c6 {[%clk 0:00:04]} 44. Be1 {[%clk 0:00:40]}  Kf3 {[%clk 0:00:05]} 45. Kd2 {[%clk 0:00:38]}  Kf4 {[%clk 0:00:04]} 46. Kc3 {[%clk 0:00:38]}  Be6 {[%clk 0:00:05]} 47. Kc2 {[%clk 0:00:35]}  Ke3 {[%clk 0:00:05]} 48. Kc3 {[%clk 0:00:33]}  Bd5 {[%clk 0:00:04]} 49. Kc2 {[%clk 0:00:32]}  Ke2 {[%clk 0:00:04]} 50. Bg3 {[%clk 0:00:32]}  Kf3 {[%clk 0:00:05]} 51. Be1 {[%clk 0:00:33]}  Ke3 {[%clk 0:00:06]} 52. Kc3 {[%clk 0:00:32]}  Ke2 {[%clk 0:00:06]} 53. Bg3 {[%clk 0:00:32]}  Kf3 {[%clk 0:00:07]} 54. Be1 {[%clk 0:00:33]}  Ke4 {[%clk 0:00:08]} 55. Kd2 {[%clk 0:00:32]}  Be6 {[%clk 0:00:09]} 56. Kc3 {[%clk 0:00:33]}  Bf5 {[%clk 0:00:09]} 57. Bg3 {[%clk 0:00:33]}  Kf3 {[%clk 0:00:09]} 58. Be1 {[%clk 0:00:33]}  Ke2 {[%clk 0:00:09]} 59. Bg3 {[%clk 0:00:33]}  Ke3 {[%clk 0:00:10]} 60. Be1 {[%clk 0:00:33]}  Be6 {[%clk 0:00:10]} 61. Bg3 {[%clk 0:00:33]}  Kf3 {[%clk 0:00:11]} 62. Be1 {[%clk 0:00:33]}  Ke4 {[%clk 0:00:11]} 63. Bg3 {[%clk 0:00:33]}  Kf5 {[%clk 0:00:11]} 64. Be1 {[%clk 0:00:33]}  Ke5 {[%clk 0:00:12]} 65. Bg3+ {[%clk 0:00:33]}  Ke4 {[%clk 0:00:13]} 66. Be1 {[%clk 0:00:34]}  Bh3 {[%clk 0:00:13]} 67. Bg3 {[%clk 0:00:34]}  Bf1 {[%clk 0:00:13]} 68. Be1 {[%clk 0:00:34]}  Bb5 {[%clk 0:00:14]} 69. Bg3 {[%clk 0:00:34]}  Kf3 {[%clk 0:00:14]} 70. Be1 {[%clk 0:00:34]}  Ke3 {[%clk 0:00:14]} 71. Bg3 {[%clk 0:00:34]}  Ke4 {[%clk 0:00:14]} 72. Be1 {[%clk 0:00:34]}  Kf3 {[%clk 0:00:15]} 73. Kd2 {[%clk 0:00:33]}  Kg2 {[%clk 0:00:14]} 74. Kc3 {[%clk 0:00:33]}  Kf3 {[%clk 0:00:14]} 75. Kd2 {[%clk 0:00:33]}  Kf4 {[%clk 0:00:14]} 76. Kc3 {[%clk 0:00:33]}  Ke4 {[%clk 0:00:14]} 77. Bg3 {[%clk 0:00:33]}  Kf3 {[%clk 0:00:14]} 78. Be1 {[%clk 0:00:33]}  Kg4 {[%clk 0:00:14]} 79. Kd4 {[%clk 0:00:31]}  Kf5 {[%clk 0:00:15]} 80. Kc3 {[%clk 0:00:31]}  f6 {[%clk 0:00:15]} 81. gxf6 {[%clk 0:00:31]}  Kxf6 {[%clk 0:00:16]} 82. Bd2 {[%clk 0:00:31]}  Kf5 {[%clk 0:00:16]} 83. Bg5 {[%clk 0:00:31]} 1/2-1/2


[Site "https://www.chess.com"]

[Event "Titled Tuesday Blitz February 28 Early 2023"]
[White "Steinberg, Nitzan"]
[Black "Srihari L R"]
[WhiteFideId "2801795"]
[BlackFideId "46617116"]
[WhiteElo "2486"]
[BlackElo "2334"]
[Result "1-0"]
[Round "03"]
[TimeControl "180+2"]
[Date "2023.02.28"]
[WhiteClock "0:00:08"]
[BlackClock "0:00:01"]

1. Nf3 {[%clk 0:03:00]}  d5 {[%clk 0:02:58]} 2. d4 {[%clk 0:03:01]}  Nf6 {[%clk 0:02:58]} 3. c4 {[%clk 0:03:01]}  e6 {[%clk 0:02:57]} 4. Nc3 {[%clk 0:03:01]}  c5 {[%clk 0:02:53]} 5. e3 {[%clk 0:02:58]}  Nc6 {[%clk 0:02:52]} 6. a3 {[%clk 0:02:58]}  cxd4 {[%clk 0:02:48]} 7. exd4 {[%clk 0:02:58]}  a6 {[%clk 0:02:45]} 8. Bd3 {[%clk 0:02:48]}  dxc4 {[%clk 0:02:44]} 9. Bxc4 {[%clk 0:02:48]}  Be7 {[%clk 0:02:44]} 10. O-O {[%clk 0:02:49]}  O-O {[%clk 0:02:44]} 11. Re1 {[%clk 0:02:45]}  b5 {[%clk 0:02:43]} 12. Bb3 {[%clk 0:02:43]}  Bb7 {[%clk 0:02:40]} 13. Bg5 {[%clk 0:02:42]}  Re8 {[%clk 0:02:40]} 14. Rc1 {[%clk 0:02:39]}  Na5 {[%clk 0:02:37]} 15. Ba2 {[%clk 0:02:23]}  Rc8 {[%clk 0:02:34]} 16. Ne5 {[%clk 0:02:22]}  Nc4 {[%clk 0:02:22]} 17. Nxc4 {[%clk 0:01:55]}  bxc4 {[%clk 0:02:23]} 18. Qd2 {[%clk 0:01:53]}  h6 {[%clk 0:01:51]} 19. Bh4 {[%clk 0:01:45]}  Qa5 {[%clk 0:01:40]} 20. Rcd1 {[%clk 0:01:30]}  Red8 {[%clk 0:01:17]} 21. Qe2 {[%clk 0:01:29]}  Qc7 {[%clk 0:01:09]} 22. Bb1 {[%clk 0:01:07]}  Qc6 {[%clk 0:01:04]} 23. f3 {[%clk 0:01:07]}  Qb6 {[%clk 0:00:54]} 24. Bf2 {[%clk 0:01:07]}  Nd5 {[%clk 0:00:54]} 25. Qc2 {[%clk 0:00:59]}  g6 {[%clk 0:00:53]} 26. Na4 {[%clk 0:00:58]}  Qb5 {[%clk 0:00:42]} 27. Nc5 {[%clk 0:00:57]}  Bc6 {[%clk 0:00:41]} 28. Nxe6 {[%clk 0:00:51]}  Re8 {[%clk 0:00:34]} 29. Nc5 {[%clk 0:00:46]}  Bf8 {[%clk 0:00:31]} 30. h4 {[%clk 0:00:45]}  h5 {[%clk 0:00:29]} 31. Ne4 {[%clk 0:00:43]}  Re6 {[%clk 0:00:26]} 32. Ng5 {[%clk 0:00:42]}  Rxe1+ {[%clk 0:00:25]} 33. Rxe1 {[%clk 0:00:43]}  Nf4 {[%clk 0:00:26]} 34. Re5 {[%clk 0:00:35]}  Qb7 {[%clk 0:00:19]} 35. Qd2 {[%clk 0:00:29]}  Nd5 {[%clk 0:00:09]} 36. Ne4 {[%clk 0:00:25]}  Rb8 {[%clk 0:00:08]} 37. Bc2 {[%clk 0:00:12]}  Qxb2 {[%clk 0:00:08]} 38. Rxd5 {[%clk 0:00:13]}  Bxd5 {[%clk 0:00:08]} 39. Nf6+ {[%clk 0:00:13]}  Kh8 {[%clk 0:00:08]} 40. Nxd5 {[%clk 0:00:14]}  Qxa3 {[%clk 0:00:06]} 41. Bg3 {[%clk 0:00:14]}  Rb2 {[%clk 0:00:05]} 42. Be5+ {[%clk 0:00:14]}  Kg8 {[%clk 0:00:03]} 43. Nf6+ {[%clk 0:00:14]}  Kg7 {[%clk 0:00:03]} 44. Nxh5+ {[%clk 0:00:13]}  Kg8 {[%clk 0:00:03]} 45. Nf6+ {[%clk 0:00:13]}  Kg7 {[%clk 0:00:03]} 46. h5 {[%clk 0:00:09]}  Bd6 {[%clk 0:00:02]} 47. Ne8+ {[%clk 0:00:08]}  Kg8 {[%clk 0:00:02]} 48. Nxd6 {[%clk 0:00:08]}  Qa1+ {[%clk 0:00:02]} 49. Kh2 {[%clk 0:00:08]}  Qa5 {[%clk 0:00:01]} 50. Qh6 {[%clk 0:00:08]} 1-0


[Site "https://www.chess.com"]